fUST/lending_fUST_20240105
["ID","MTS","AMOUNT","RATE_DAILY","PERIOD"]
[310215769,1704402653215,-500.0,0.00039726,7]
[310215772,1704402653226,-1000.0,0.00039726,2]
[310215774,1704402653235,-500.0,0.00039726,7]
[310215776,1704402653244,-500.0,0.00039726,7]
[310215777,1704402653253,-577.5,0.00039726,7]
[310215779,1704402653262,-779.47,0.00039726,7]
[310215781,1704402653271,-500.0,0.00039726,7]
[310215783,1704402653280,-500.0,0.00039726,7]
[310215785,1704402653289,-500.0,0.00039726,7]
[310215787,1704402653298,-500.0,0.00039726,7]
[310215789,1704402653308,-500.0,0.00039726,7]
[310215792,1704402653319,-572.68,0.00039726,7]
[310215793,1704402653330,-876.01,0.00039726,7]
[310215795,1704402653341,-500.0,0.00039726,7]
[310215797,1704402653351,-500.0,0.00039726,7]
[310215799,1704402653361,-534.62,0.00039726,7]
[310215802,1704402653375,-864.97,0.00039726,7]
[310215805,1704402653393,-1586.66,0.00039726,7]
[310215807,1704402653409,-500.0,0.00039726,7]
[310215810,1704402653424,-872.84,0.00039726,7]
[310215812,1704402653441,-359.12096103,0.00039726,7]
[310215815,1704402653460,-3351.02,0.00039726,7]
[310215818,1704402653474,-614.39682082,0.00039726,7]
[310215820,1704402653491,-500.0,0.00039726,7]
[310215822,1704402653506,-562.12,0.00039726,7]
[310215825,1704402653522,-4359.94,0.00039726,7]
[310215828,1704402653537,-500.0,0.00039726,7]
[310215830,1704402653552,-500.0,0.00039726,7]
[310215833,1704402653568,-500.0,0.00039726,7]
[310215835,1704402653581,-672.06,0.00039726,7]
[310215837,1704402653596,-500.0,0.00039726,7]
[310215840,1704402653611,-878.43,0.00039726,7]
[310215843,1704402653629,-2456.29,0.00039726,7]
[310215845,1704402653643,-831.29,0.00039726,7]
[310215848,1704402653654,-500.0,0.00039726,7]
[310215850,1704402653667,-500.0,0.00039726,7]
[310215853,1704402653681,-500.0,0.00039726,7]
[310215855,1704402653695,-500.0,0.00039726,7]
[310215857,1704402653707,-1273.76,0.00039726,7]
[310215860,1704402653719,-688.4,0.00039726,7]
[310215863,1704402653742,-500.0,0.00039726,7]
[310215867,1704402653772,-478.34047393,0.00039726,7]
[310215871,1704402653800,-327.76952607,0.00039726,7]
[310215874,1704402653816,-500.0,0.00039726,7]
[310215877,1704402653833,-807.33,0.00039726,7]
[310215879,1704402653847,-541.0597211,0.00039726,7]
[310215882,1704402653861,-2879.5887524,0.00039726,7]
[310215885,1704402653879,-692.1312476,0.00039726,7]
[310215887,1704402653893,-500.0,0.00039726,7]
[310215890,1704402653907,-10711.78,0.00039726,7]
[310215892,1704402653920,-25933.85,0.00039726,7]
[310215894,1704402653932,-500.0,0.00039726,7]
[310215897,1704402653945,-500.0,0.00039726,7]
[310215899,1704402653958,-500.0,0.00039726,7]
[310215902,1704402653972,-500.0,0.00039726,7]
[310215904,1704402653986,-500.0,0.00039726,7]
[310215907,1704402653998,-500.0,0.00039726,7]
[310215909,1704402654011,-384.84394215,0.00039726,7]
[310215911,1704402654020,-528.8517055,0.00039726,7]
[310215913,1704402654030,-1808.05,0.00039726,7]
[310215915,1704402654039,-1587.08,0.00039726,7]
[310215917,1704402654048,-523.25766264,0.00039726,7]
[310215919,1704402654058,-4004.34,0.00039726,7]
[310215921,1704402654067,-500.0,0.00039726,7]
[310215923,1704402654077,-2074.54,0.00039726,7]
[310215925,1704402654086,-17433.30640904,0.00039726,7]
[310215943,1704402654257,-1600.31828954,0.00038345,2]
[310215945,1704402654266,-239.4661869,0.00038345,4]
[310215947,1704402654276,-3736.60404122,0.00038355,4]
[310215949,1704402654288,-542.22302539,0.00038355,4]
[310215951,1704402654297,-695.77359096,0.00039726,7]
[310215953,1704402654306,-500.0,0.00039726,7]
[310215955,1704402654316,-573.66885258,0.00039726,7]
[310215957,1704402654326,-500.0,0.00039726,7]
[310215959,1704402654335,-723.52,0.00039726,7]
[310215962,1704402654344,-1985.08,0.00039726,7]
[310215964,1704402654353,-1103.74,0.00039726,7]
[310215985,1704402654537,-1298.29452842,0.00039726,7]
[310215987,1704402654558,-907.20547158,0.00039726,7]
[310215990,1704402654568,-500.0,0.00039726,7]
[310215992,1704402654577,-500.0,0.00039726,7]
[310215994,1704402654587,-147.69221958,0.00039726,7]
[310222562,1704403757094,-685.53559507,0.00030753,4]
[310222563,1704403757116,-154.73694719,0.00030753,5]
[310222564,1704403757137,-243.37606438,0.00030754,4]
[310222565,1704403757161,-6207.63302224,0.00030754,4]
[310222566,1704403773101,-328.79895563,0.00030754,4]
[310222567,1704403773122,-4168.91295183,0.00030755,2]
[310222568,1704403773143,-171.10469175,0.00030786,2]
[310222569,1704403773167,-282.15862485,0.00030889,3]
[310222570,1704403773188,-168.447585,0.00031844,2]
[310222571,1704403773210,-178.0902411,0.00032191,2]
[310222572,1704403773232,-174.560535,0.00032674,2]
[310222573,1704403773252,-150.58090873,0.00032904,4]
[310222574,1704403773273,-162.90550611,0.00032948,2]
[310222625,1704403832743,-14.05968259,0.00032948,2]
[310222626,1704403832753,-154.73694719,0.00032999,5]
[310222627,1704403832765,-163.0,0.00033,2]
[310222628,1704403832775,-261.464588,0.00033347,2]
[310222629,1704403832786,-168.447585,0.00033858,2]
[310222630,1704403832796,-1000.0,0.00034,7]
[310222631,1704403832807,-317.01619485,0.00034517,4]
[310222632,1704403832818,-2432.86370923,0.00034517,4]
[310222633,1704403832827,-500.0,0.000347,7]
[310222634,1704403832837,-183.06490481,0.000349,2]
[310222635,1704403832848,-170.1709713,0.00034986,4]
[310222636,1704403832857,-242.84928095,0.00034987,2]
[310222637,1704403832867,-1321.08258665,0.00034998,4]
[310222638,1704403832876,-1454.89912219,0.00035,14]
[310222639,1704403832885,-3539.86097792,0.00035,2]
[310222640,1704403832894,-590.45108746,0.00035345,2]
[310222641,1704403832903,-173.39646714,0.00035346,7]
[310222642,1704403832913,-154.84515485,0.00035448,4]
[310222643,1704403832922,-486.0,0.00035452,2]
[310222644,1704403832932,-154.89156971,0.00035612,4]
[310222645,1704403832941,-257.195895,0.00035616,120]
[310222646,1704403832950,-500.0,0.000357,7]
[310222647,1704403832960,-500.0,0.000367,7]
[310222648,1704403832969,-1798.65,0.00037317,3]
[310222649,1704403832978,-9165.94253502,0.00037327,4]
[310222687,1704403838551,-640.94709105,0.00037327,4]
[310222734,1704403839098,-1033.45421628,0.00037327,4]
[310222735,1704403839114,-92987.75017972,0.00037327,4]
[310222736,1704403839123,-1784.05487645,0.00037336,4]
[310222737,1704403839132,-2009.51611107,0.00037337,2]
[310222738,1704403839141,-245.68790721,0.00037348,4]
[310222739,1704403839150,-390.97326283,0.00037349,4]
[310222740,1704403839159,-360.177092,0.0003735,2]
[310222741,1704403839167,-430.27140945,0.00037352,2]
[310222742,1704403839177,-155.0,0.00037356,2]
[310222743,1704403839186,-500.0,0.000377,7]
[310222744,1704403839196,-433.23535958,0.00037727,4]
[310222745,1704403839209,-12203.38142743,0.0003774,5]
[310222746,1704403839217,-379.48356558,0.00038,4]
[310222747,1704403839226,-183.06490481,0.00038256,2]
[310222748,1704403839235,-2149.46047625,0.00038352,4]
[310222749,1704403839244,-46992.09509703,0.00038353,14]
[310222750,1704403839253,-404.56520189,0.00038353,2]
[310222751,1704403839262,-161.30735013,0.00038353,2]
[310222752,1704403839271,-410.01302182,0.00038353,2]
[310222753,1704403839279,-42529.26427004,0.00038354,2]
[310222754,1704403839288,-482.35983654,0.00038355,4]
[310222755,1704403839297,-242.73912113,0.00038355,7]
[310222756,1704403839306,-170.45703652,0.00038356,30]
[310222757,1704403839315,-500.0,0.00038356,7]
[310222758,1704403839324,-500.0,0.00038356,7]
[310222759,1704403839333,-500.0,0.00038356,7]
[310222760,1704403839342,-500.0,0.00038356,7]
[310222761,1704403839351,-345.96094653,0.00038356,7]
[310222762,1704403839360,-500.0,0.00038356,7]
[310222763,1704403839369,-500.0,0.00038356,7]
[310222764,1704403839377,-500.0,0.00038356,7]
[310222765,1704403839386,-500.0,0.00038356,7]
[310222766,1704403839395,-500.0,0.00038356,7]
[310222767,1704403839403,-500.0,0.00038356,7]
[310222768,1704403839412,-558.49,0.00038356,7]
[310222769,1704403839421,-500.0,0.00038356,7]
[310222770,1704403839430,-500.0,0.00038356,7]
[310222771,1704403839440,-280.88430734,0.00038356,7]
[310222772,1704403839450,-500.0,0.00038356,7]
[310222773,1704403839458,-444.90995867,0.00038356,7]
[310222774,1704403839467,-500.0,0.00038356,7]
[310222775,1704403839476,-500.0,0.00038356,7]
[310222777,1704403839485,-500.0,0.00038356,7]
[310222778,1704403839496,-500.0,0.00038356,7]
[310222779,1704403839505,-500.0,0.00038356,7]
[310222780,1704403839514,-500.0,0.00038356,7]
[310222781,1704403839523,-500.0,0.00038356,7]
[310222783,1704403839532,-500.0,0.00038356,7]
[310222784,1704403839541,-500.0,0.00038356,7]
[310222786,1704403839551,-500.0,0.00038356,7]
[310222788,1704403839561,-500.0,0.00038356,7]
[310222790,1704403839572,-1197.1,0.00038356,7]
[310222792,1704403839581,-500.0,0.00038356,7]
[310222795,1704403839590,-500.0,0.00038356,7]
[310222797,1704403839600,-500.0,0.00038356,7]
[310222798,1704403839610,-500.0,0.00038356,7]
[310222800,1704403839619,-500.0,0.00038356,7]
[310222802,1704403839629,-500.0,0.00038356,7]
[310222804,1704403839638,-500.0,0.00038356,7]
[310222807,1704403839648,-500.0,0.00038356,7]
[310222808,1704403839657,-500.0,0.00038356,7]
[310222810,1704403839666,-500.0,0.00038356,7]
[310222812,1704403839675,-500.0,0.00038356,7]
[310222814,1704403839684,-500.0,0.00038356,7]
[310222816,1704403839696,-500.0,0.00038356,7]
[310222818,1704403839705,-500.0,0.00038356,7]
[310222820,1704403839714,-452.20295325,0.00038356,7]
[310222822,1704403839724,-500.0,0.00038356,7]
[310222824,1704403839733,-500.0,0.00038356,7]
[310222826,1704403839742,-500.0,0.00038356,7]
[310222827,1704403839752,-500.0,0.00038356,7]
[310222829,1704403839761,-500.0,0.00038356,7]
[310222831,1704403839771,-500.0,0.00038356,7]
[310222832,1704403839780,-500.0,0.00038356,7]
[310222834,1704403839789,-150.99650707,0.00038356,7]
[310222835,1704403839798,-500.0,0.00038356,7]
[310222837,1704403839808,-500.0,0.00038356,7]
[310222838,1704403839817,-576.98,0.00038356,7]
[310222839,1704403839826,-500.0,0.00038356,7]
[310222840,1704403839835,-500.0,0.00038356,7]
[310222841,1704403839845,-500.0,0.00038356,7]
[310222842,1704403839854,-500.0,0.00038356,7]
[310222843,1704403839863,-500.0,0.00038356,7]
[310222844,1704403839872,-1233.61,0.00038356,7]
[310222845,1704403839882,-500.0,0.00038356,7]
[310222846,1704403839891,-500.0,0.00038356,7]
[310222847,1704403839901,-517.5,0.00038356,7]
[310222848,1704403839910,-500.0,0.00038356,7]
[310222849,1704403839920,-500.0,0.00038356,7]
[310222850,1704403839929,-500.0,0.00038356,7]
[310222851,1704403839939,-500.0,0.00038356,7]
[310222852,1704403839948,-500.0,0.00038356,7]
[310222853,1704403839957,-500.0,0.00038356,7]
[310222854,1704403839965,-500.0,0.00038356,7]
[310222855,1704403839974,-500.0,0.00038356,7]
[310222856,1704403839984,-617.08,0.00038356,7]
[310222857,1704403839995,-500.0,0.00038356,7]
[310222858,1704403840004,-500.0,0.00038356,7]
[310222859,1704403840013,-500.0,0.00038356,7]
[310222860,1704403840023,-514.84574654,0.00038356,7]
[310222861,1704403840032,-500.0,0.00038356,7]
[310222862,1704403840041,-691.0,0.00038356,7]
[310222863,1704403840050,-500.0,0.00038356,7]
[310222864,1704403840060,-200.0,0.00038356,7]
[310222865,1704403840070,-500.0,0.00038356,7]
[310222866,1704403840081,-500.0,0.00038356,7]
[310222867,1704403840091,-500.0,0.00038356,7]
[310222868,1704403840100,-432.65747509,0.00038356,7]
[310222869,1704403840109,-195.17685847,0.00038356,2]
[310222870,1704403840118,-500.0,0.00038356,7]
[310222871,1704403840127,-485.770864,0.00038356,2]
[310222872,1704403840136,-500.0,0.00038356,7]
[310222873,1704403840145,-500.0,0.00038356,7]
[310222874,1704403840154,-500.0,0.00038356,7]
[310222875,1704403840163,-500.0,0.00038356,7]
[310222876,1704403840172,-500.0,0.00038356,7]
[310222877,1704403840181,-500.0,0.00038356,7]
[310222878,1704403840191,-1564.77,0.00038356,2]
[310222879,1704403840201,-500.0,0.00038356,7]
[310222880,1704403840210,-500.0,0.00038356,7]
[310222881,1704403840219,-552.88,0.00038356,7]
[310222882,1704403840229,-1532.91,0.00038356,7]
[310222883,1704403840238,-500.0,0.00038356,2]
[310222884,1704403840247,-500.0,0.00038356,7]
[310222885,1704403840256,-500.0,0.00038356,7]
[310222886,1704403840265,-500.0,0.00038356,7]
[310222887,1704403840274,-500.0,0.00038356,7]
[310222888,1704403840283,-150.0,0.00038356,7]
[310222889,1704403840292,-500.0,0.00038356,7]
[310222890,1704403840301,-657.4,0.00038356,7]
[310222891,1704403840310,-500.0,0.00038356,7]
[310222892,1704403840319,-500.0,0.00038356,7]
[310222893,1704403840329,-1000.0,0.00038356,2]
[310222894,1704403840338,-1000.0,0.00038356,2]
[310222895,1704403840347,-500.0,0.00038356,7]
[310222896,1704403840356,-500.0,0.00038356,7]
[310222897,1704403840365,-500.0,0.00038356,7]
[310222898,1704403840375,-500.0,0.00038356,7]
[310222899,1704403840384,-501.05172239,0.00038356,7]
[310222900,1704403840394,-500.0,0.00038356,7]
[310222901,1704403840403,-500.0,0.00038356,7]
[310222902,1704403840412,-514.494184,0.00038356,7]
[310222903,1704403840421,-518.2220612,0.00038356,7]
[310222904,1704403840430,-500.0,0.00038356,7]
[310222905,1704403840440,-524.21871297,0.00038356,7]
[310222906,1704403840449,-502.58525696,0.00038356,7]
[310222907,1704403840458,-500.0,0.00038356,7]
[310222908,1704403840467,-750.84,0.00038356,7]
[310222909,1704403840477,-500.0,0.00038356,7]
[310222911,1704403840581,-496.31685656,0.00038356,7]
[310222913,1704403840590,-520.0,0.00038356,7]
[310222914,1704403840600,-173.44529673,0.00038356,7]
[310222916,1704403840609,-500.0,0.00038356,7]
[310222918,1704403840618,-174.02945353,0.00038356,7]
[310222920,1704403840627,-329.1053142,0.00038356,7]
[310222921,1704403840636,-327.08886896,0.00038356,7]
[310222923,1704403840646,-500.0,0.00038356,7]
[310222926,1704403840656,-500.0,0.00038356,7]
[310222927,1704403840666,-354.35811538,0.00038356,7]
[310222928,1704403840675,-500.0,0.00038356,7]
[310222929,1704403840684,-720.81,0.00038356,7]
[310222930,1704403840695,-500.59381504,0.00038356,7]
[310222931,1704403840704,-500.0,0.00038356,7]
[310222932,1704403840713,-500.0,0.00038356,7]
[310222933,1704403840723,-301.39637935,0.00038356,7]
[310222934,1704403840733,-1081.67,0.00038356,7]
[310222935,1704403840742,-500.0,0.00038356,7]
[310222936,1704403840752,-500.0,0.00038356,7]
[310222937,1704403840761,-500.0,0.00038356,7]
[310222938,1704403840771,-849.82,0.00038356,7]
[310222939,1704403840781,-1135.37,0.00038356,7]
[310222940,1704403840791,-3814.95,0.00038356,7]
[310222941,1704403840800,-500.0,0.00038356,7]
[310222942,1704403840810,-512.69,0.00038356,7]
[310222943,1704403840819,-500.0,0.00038356,7]
[310222944,1704403840828,-694.37,0.00038356,7]
[310222945,1704403840838,-748.22,0.00038356,7]
[310222946,1704403840847,-500.0,0.00038356,7]
[310222947,1704403840857,-500.0,0.00038356,7]
[310222948,1704403840866,-500.0,0.00038356,7]
[310222949,1704403840876,-1373.82,0.00038356,7]
[310222950,1704403840888,-500.0,0.00038356,7]
[310222951,1704403840898,-510.00128145,0.00038356,7]
[310222952,1704403840908,-500.0,0.00038356,7]
[310222953,1704403840917,-500.0,0.00038356,7]
[310222954,1704403840927,-500.0,0.00038356,7]
[310222955,1704403840936,-500.0,0.00038356,7]
[310222956,1704403840948,-500.0,0.00038356,7]
[310222957,1704403840958,-1728.79,0.00038356,7]
[310222958,1704403840968,-500.0,0.00038356,7]
[310222959,1704403840979,-2856.90497968,0.00038356,10]
[310222960,1704403840991,-500.0,0.00038356,7]
[310222961,1704403841001,-500.0,0.00038356,7]
[310222962,1704403841011,-623.76,0.00038356,7]
[310222963,1704403841019,-500.0,0.00038356,2]
[310222964,1704403841029,-500.0,0.00038356,7]
[310222965,1704403841038,-500.0,0.00038356,7]
[310222966,1704403841047,-500.0,0.00038356,7]
[310222967,1704403841056,-500.0,0.00038356,7]
[310222968,1704403841065,-1506.71,0.00038356,7]
[310222969,1704403841076,-500.0,0.00038356,7]
[310222970,1704403841084,-500.0,0.00038356,2]
[310222971,1704403841093,-500.0,0.00038356,7]
[310222972,1704403841104,-500.0,0.00038356,7]
[310222973,1704403841113,-706.41,0.00038356,7]
[310222974,1704403841123,-503.19522326,0.00038356,7]
[310222975,1704403841132,-1047.73,0.00038356,7]
[310222976,1704403841142,-500.0,0.00038356,7]
[310222977,1704403841151,-500.0,0.00038356,7]
[310222978,1704403841160,-279.69682944,0.00038356,7]
[310222979,1704403841170,-3125.26,0.00038356,7]
[310222980,1704403841179,-500.0,0.00038356,7]
[310222981,1704403841189,-500.0,0.00038356,7]
[310222982,1704403841198,-500.0,0.00038356,7]
[310222983,1704403841207,-500.0,0.00038356,7]
[310222984,1704403841218,-500.0,0.00038356,7]
[310222985,1704403841228,-500.0,0.00038356,7]
[310222986,1704403841237,-500.0,0.00038356,7]
[310222987,1704403841246,-500.0,0.00038356,7]
[310222988,1704403841255,-500.0,0.00038356,7]
[310222989,1704403841264,-500.0,0.00038356,7]
[310222990,1704403841273,-465.57299228,0.00038356,7]
[310222991,1704403841282,-500.0,0.00038356,7]
[310222992,1704403841291,-500.0,0.00038356,7]
[310222993,1704403841300,-500.0,0.00038356,7]
[310222994,1704403841309,-500.0,0.00038356,7]
[310222995,1704403841318,-500.0,0.00038356,7]
[310222996,1704403841329,-500.0,0.00038356,7]
[310222997,1704403841341,-500.0,0.00038356,7]
[310222999,1704403841350,-500.0,0.00038356,7]
[310223001,1704403841361,-500.0,0.00038356,7]
[310223003,1704403841370,-500.0,0.00038356,7]
[310223005,1704403841379,-500.0,0.00038356,7]
[310223007,1704403841388,-513.00256286,0.00038356,7]
[310223009,1704403841397,-705.34,0.00038356,7]
[310223011,1704403841406,-500.0,0.00038356,7]
[310223013,1704403841414,-744.85,0.00038356,7]
[310223015,1704403841423,-9877.37,0.00038356,7]
[310223017,1704403841432,-500.0,0.00038356,7]
[310223019,1704403841442,-500.0,0.00038356,7]
[310223021,1704403841451,-500.0,0.00038356,7]
[310223022,1704403841460,-500.0,0.00038356,7]
[310223024,1704403841470,-500.0,0.00038356,7]
[310223026,1704403841479,-500.0,0.00038356,7]
[310223028,1704403841488,-220.0,0.00038356,2]
[310223030,1704403841496,-500.0,0.00038356,7]
[310223032,1704403841505,-500.0,0.00038356,7]
[310223034,1704403841514,-500.0,0.00038356,7]
[310223036,1704403841523,-15428.1,0.00038356,7]
[310223038,1704403841532,-1089.44,0.00038356,7]
[310223040,1704403841541,-500.0,0.00038356,7]
[310223042,1704403841550,-500.0,0.00038356,7]
[310223044,1704403841560,-500.0,0.00038356,7]
[310223046,1704403841570,-174.92049465,0.00038356,7]
[310223048,1704403841579,-500.0,0.00038356,7]
[310223050,1704403841588,-500.0,0.00038356,7]
[310223052,1704403841598,-1654.23,0.00038356,7]
[310223054,1704403841606,-500.0,0.00038356,7]
[310223056,1704403841617,-512.05962348,0.00038356,7]
[310223058,1704403841626,-500.0,0.00038356,7]
[310223059,1704403841636,-970.41,0.00038356,7]
[310223061,1704403841645,-500.0,0.00038356,7]
[310223063,1704403841654,-1937.04,0.00038356,7]
[310223065,1704403841664,-752.89,0.00038356,7]
[310223067,1704403841673,-500.0,0.00038356,7]
[310223070,1704403841683,-500.0,0.00038356,7]
[310223071,1704403841693,-500.0,0.00038356,7]
[310223074,1704403841702,-8841.35,0.00038356,7]
[310223076,1704403841712,-500.0,0.00038356,7]
[310223078,1704403841721,-500.0,0.00038356,7]
[310223080,1704403841730,-500.0,0.00038356,7]
[310223082,1704403841740,-2898.21,0.00038356,7]
[310223084,1704403841749,-500.0,0.00038356,7]
[310223086,1704403841758,-500.0,0.00038356,7]
[310223088,1704403841768,-324.80123354,0.00038356,7]
[310223090,1704403841777,-500.0,0.00038356,7]
[310223092,1704403841787,-500.0,0.00038356,7]
[310223094,1704403841797,-491.40075675,0.00038356,7]
[310223096,1704403841806,-500.0,0.00038356,7]
[310223098,1704403841815,-500.0,0.00038356,7]
[310223100,1704403841825,-23122.23,0.00038356,7]
[310223102,1704403841834,-500.0,0.00038356,7]
[310223104,1704403841844,-500.0,0.00038356,7]
[310223106,1704403841854,-500.0,0.00038356,7]
[310223108,1704403841864,-500.0,0.00038356,7]
[310223110,1704403841873,-6129.7,0.00038356,7]
[310223112,1704403841883,-243.68851885,0.00038356,7]
[310223114,1704403841892,-500.0,0.00038356,7]
[310223116,1704403841902,-500.0,0.00038356,7]
[310223118,1704403841912,-500.0,0.00038356,7]
[310223120,1704403841922,-500.0,0.00038356,7]
[310223122,1704403841932,-500.0,0.00038356,7]
[310223124,1704403841942,-603.41,0.00038356,7]
[310223126,1704403841952,-500.0,0.00038356,7]
[310223128,1704403841962,-1388.33,0.00038356,7]
[310223130,1704403841973,-500.0,0.00038356,7]
[310223132,1704403841984,-500.0,0.00038356,7]
[310223134,1704403841995,-500.0,0.00038356,7]
[310223136,1704403842005,-500.0,0.00038356,7]
[310223138,1704403842015,-500.0,0.00038356,7]
[310223140,1704403842025,-634.75,0.00038356,7]
[310223142,1704403842035,-617.62,0.00038356,7]
[310223144,1704403842044,-294.52464306,0.00038356,7]
[310223145,1704403842054,-500.0,0.00038356,7]
[310223148,1704403842064,-2149.26,0.00038356,7]
[310223150,1704403842077,-500.0,0.00038356,7]
[310223151,1704403842087,-500.0,0.00038356,7]
[310223153,1704403842098,-232.10095586,0.00038356,7]
[310223155,1704403842108,-500.0,0.00038356,7]
[310223158,1704403842118,-2932.15,0.00038356,7]
[310223159,1704403842129,-2164.45,0.00038356,7]
[310223162,1704403842141,-500.0,0.00038356,7]
[310223164,1704403842155,-556.77115775,0.00038356,7]
[310223165,1704403842165,-500.0,0.00038356,7]
[310223167,1704403842176,-500.0,0.00038356,7]
[310223169,1704403842186,-500.0,0.00038356,7]
[310223171,1704403842198,-524.36763937,0.00038356,7]
[310223173,1704403842209,-500.0,0.00038356,7]
[310223176,1704403842219,-500.0,0.00038356,7]
[310223177,1704403842228,-500.0,0.00038356,7]
[310223179,1704403842238,-500.0,0.00038356,7]
[310223181,1704403842249,-500.0,0.00038356,30]
[310223183,1704403842259,-500.0,0.00038356,7]
[310223184,1704403842270,-500.0,0.00038356,7]
[310223186,1704403842281,-2032.27,0.00038356,7]
[310223188,1704403842292,-500.0,0.00038356,7]
[310223190,1704403842301,-841.33,0.00038356,7]
[310223192,1704403842311,-768.62,0.00038356,7]
[310223194,1704403842321,-500.0,0.00038356,7]
[310223196,1704403842331,-500.0,0.00038356,7]
[310223198,1704403842341,-500.0,0.00038356,7]
[310223200,1704403842352,-3336.95,0.00038356,7]
[310223202,1704403842362,-500.0,0.00038356,7]
[310223204,1704403842372,-500.0,0.00038356,7]
[310223206,1704403842382,-500.0,0.00038356,7]
[310223208,1704403842392,-297.62585901,0.00038356,7]
[310223210,1704403842402,-500.0,0.00038356,7]
[310223212,1704403842412,-500.0,0.00038356,7]
[310223214,1704403842421,-500.0,0.00038356,7]
[310223215,1704403842432,-608.97,0.00038356,7]
[310223217,1704403842444,-497.20565359,0.00038356,7]
[310223219,1704403842454,-274.44527464,0.00038356,7]
[310223221,1704403842464,-500.0,0.00038356,7]
[310223223,1704403842476,-500.0,0.00038356,7]
[310223225,1704403842486,-500.0,0.00038356,2]
[310223228,1704403842496,-500.0,0.00038356,7]
[310223230,1704403842507,-500.0,0.00038356,7]
[310223231,1704403842517,-500.0,0.00038356,7]
[310223233,1704403842527,-500.0,0.00038356,7]
[310223235,1704403842536,-500.0,0.00038356,7]
[310223237,1704403842545,-500.0,0.00038356,7]
[310223239,1704403842554,-327.08139392,0.00038356,7]
[310223241,1704403842564,-500.0,0.00038356,7]
[310223243,1704403842573,-500.0,0.00038356,7]
[310223245,1704403842583,-500.0,0.00038356,7]
[310223247,1704403842592,-167.83,0.00038625,2]
[310223249,1704403842602,-167.83,0.00038625,2]
[310223251,1704403842611,-167.83,0.00038625,2]
[310223253,1704403842621,-167.83,0.00038625,2]
[310223255,1704403842631,-167.83,0.00038625,2]
[310223257,1704403842641,-167.83,0.00038625,2]
[310223259,1704403842651,-267.08342016,0.00038625,2]
[310223261,1704403842661,-5330.15250179,0.00038628,4]
[310223263,1704403842670,-500.0,0.0003863,7]
[310223264,1704403842679,-500.0,0.0003863,7]
[310223266,1704403842693,-500.0,0.0003863,7]
[310223268,1704403842702,-500.0,0.0003863,7]
[310223270,1704403842713,-500.0,0.0003863,7]
[310223272,1704403842723,-500.0,0.0003863,7]
[310223274,1704403842733,-558.49,0.0003863,7]
[310223276,1704403842743,-500.0,0.0003863,7]
[310223278,1704403842753,-500.0,0.0003863,7]
[310223280,1704403842762,-500.0,0.0003863,7]
[310223282,1704403842772,-511.28786546,0.0003863,7]
[310223284,1704403842782,-500.0,0.0003863,7]
[310223286,1704403842791,-500.0,0.0003863,7]
[310223288,1704403842800,-1197.1,0.0003863,7]
[310223290,1704403842809,-500.0,0.0003863,7]
[310223292,1704403842819,-500.0,0.0003863,7]